[Event "*** SCC Grand Prix: Titled Tuesday Blitz"]
[Site "Chess.com"]
[Date "2020.10.06"]
[Round "6"]
[White "RusPakhom"]
[Black "Miss_JJ20"]
[Result "1/2-1/2"]
[WhiteElo "2317"]
[BlackElo "2472"]
[TimeControl "180+1"]
[EndTime "11:09:45 PDT"]
[Termination "Game drawn by repetition"]

1. e4 {[%clk 0:03:00.9]} 1... c5 {[%clk 0:02:56.7]} 2. Nf3 {[%clk 0:03:01.2]}
2... Nf6 {[%clk 0:02:57.3]} 3. Nc3 {[%clk 0:03:01]} 3... d5 {[%clk 0:02:56.3]}
4. exd5 {[%clk 0:03:01.3]} 4... Nxd5 {[%clk 0:02:55.8]} 5. Bb5+ {[%clk 0:03:02]}
5... Bd7 {[%clk 0:02:55.3]} 6. Bxd7+ {[%clk 0:03:00.5]} 6... Qxd7 {[%clk
0:02:55.8]} 7. O-O {[%clk 0:03:00.6]} 7... Nc6 {[%clk 0:02:53.7]} 8. Re1 {[%clk
0:03:00.9]} 8... e6 {[%clk 0:02:53.3]} 9. d3 {[%clk 0:03:00.1]} 9... Be7 {[%clk
0:02:51.1]} 10. Bg5 {[%clk 0:02:59.9]} 10... O-O {[%clk 0:02:42.1]} 11. Qd2
{[%clk 0:02:54.4]} 11... Rfe8 {[%clk 0:02:24.2]} 12. Ne4 {[%clk 0:02:48]} 12...
b6 {[%clk 0:02:19.2]} 13. Bxe7 {[%clk 0:02:43.1]} 13... Qxe7 {[%clk 0:02:14]}
14. Rad1 {[%clk 0:02:42.3]} 14... h6 {[%clk 0:02:13.3]} 15. a3 {[%clk
0:02:41.1]} 15... e5 {[%clk 0:02:09.6]} 16. Nc3 {[%clk 0:02:40]} 16... Rad8
{[%clk 0:01:57.6]} 17. Nxd5 {[%clk 0:02:33]} 17... Rxd5 {[%clk 0:01:58.5]} 18.
Qc3 {[%clk 0:02:33.4]} 18... Qf6 {[%clk 0:01:51]} 19. Re4 {[%clk 0:02:31.2]}
19... Nd4 {[%clk 0:01:41.3]} 20. Nxd4 {[%clk 0:02:27.5]} 20... cxd4 {[%clk
0:01:40.4]} 21. Qb3 {[%clk 0:02:24.5]} 21... Rc5 {[%clk 0:01:38.6]} 22. Rde1
{[%clk 0:02:22.8]} 22... Rec8 {[%clk 0:01:33.4]} 23. R1e2 {[%clk 0:02:20.3]}
23... Qg5 {[%clk 0:01:29.7]} 24. f4 {[%clk 0:01:51.4]} 24... exf4 {[%clk
0:01:21.7]} 25. Rf2 {[%clk 0:01:50.4]} 25... Rf5 {[%clk 0:00:48.7]} 26. Qa4
{[%clk 0:01:38.7]} 26... f3 {[%clk 0:00:47]} 27. Re8+ {[%clk 0:01:23.4]} 27...
Kh7 {[%clk 0:00:46.4]} 28. Re1 {[%clk 0:00:33.9]} 28... Rcc5 {[%clk 0:00:24.9]}
29. Qxd4 {[%clk 0:00:30]} 29... fxg2 {[%clk 0:00:20.6]} 30. Rxf5 {[%clk
0:00:26.5]} 30... Rxf5 {[%clk 0:00:18.4]} 31. Qe4 {[%clk 0:00:24.8]} 31... g6
{[%clk 0:00:18.3]} 32. Qxg2 {[%clk 0:00:14.9]} 32... Qf6 {[%clk 0:00:18.3]} 33.
Rf1 {[%clk 0:00:10.5]} 33... Qd4+ {[%clk 0:00:05.6]} 34. Kh1 {[%clk 0:00:09.7]}
34... Qxb2 {[%clk 0:00:05.7]} 35. Rxf5 {[%clk 0:00:09.2]} 35... gxf5 {[%clk
0:00:06.6]} 36. Qf2 {[%clk 0:00:09.4]} 36... Kg6 {[%clk 0:00:05.3]} 37. Qg3+
{[%clk 0:00:09.6]} 37... Kh7 {[%clk 0:00:04.4]} 38. Qf2 {[%clk 0:00:09.8]} 38...
Qa1+ {[%clk 0:00:02.8]} 39. Kg2 {[%clk 0:00:09.7]} 39... Kg6 {[%clk 0:00:03]}
40. Qg3+ {[%clk 0:00:09.8]} 40... Kf6 {[%clk 0:00:02.8]} 41. Qd6+ {[%clk
0:00:09.7]} 41... Kg5 {[%clk 0:00:02.8]} 42. Qg3+ {[%clk 0:00:09.7]} 42... Kh5
{[%clk 0:00:02.6]} 43. Qh3+ {[%clk 0:00:09.7]} 43... Kg6 {[%clk 0:00:03.3]} 44.
Qg3+ {[%clk 0:00:10.1]} 44... Kh7 {[%clk 0:00:03.8]} 45. Qf2 {[%clk 0:00:10.3]}
45... Qe5 {[%clk 0:00:04]} 46. Kf1 {[%clk 0:00:09.8]} 46... f4 {[%clk
0:00:03.5]} 47. Qf3 {[%clk 0:00:09.6]} 47... Kg7 {[%clk 0:00:03.4]} 48. Qg4+
{[%clk 0:00:08.2]} 48... Kf6 {[%clk 0:00:02.8]} 49. Qh4+ {[%clk 0:00:07.6]}
49... Kg7 {[%clk 0:00:02.7]} 50. Qg4+ {[%clk 0:00:07.6]} 50... Kf8 {[%clk
0:00:03.3]} 51. Qh4 {[%clk 0:00:07.4]} 51... Qa1+ {[%clk 0:00:02.9]} 52. Kg2
{[%clk 0:00:06.7]} 52... Qxa3 {[%clk 0:00:03]} 53. Qxh6+ {[%clk 0:00:06.8]}
53... Ke8 {[%clk 0:00:03.5]} 54. Qh8+ {[%clk 0:00:06.5]} 54... Ke7 {[%clk
0:00:03.4]} 55. Qe5+ {[%clk 0:00:06.3]} 55... Kd7 {[%clk 0:00:03.8]} 56. Qf5+
{[%clk 0:00:06.3]} 56... Ke8 {[%clk 0:00:03.8]} 57. Qxf4 {[%clk 0:00:06.3]}
57... Qc3 {[%clk 0:00:03.5]} 58. Qe3+ {[%clk 0:00:05.5]} 58... Kf8 {[%clk
0:00:03.6]} 59. Qh6+ {[%clk 0:00:04.3]} 59... Kg8 {[%clk 0:00:04.1]} 60. Qg5+
{[%clk 0:00:04.3]} 60... Kf8 {[%clk 0:00:03.2]} 61. Qd8+ {[%clk 0:00:03.8]}
61... Kg7 {[%clk 0:00:02.7]} 62. Qg5+ {[%clk 0:00:03.7]} 62... Kh7 {[%clk
0:00:03.2]} 63. Qh5+ {[%clk 0:00:03.9]} 63... Kg8 {[%clk 0:00:03.7]} 64. Qg5+
{[%clk 0:00:04.3]} 64... Kf8 {[%clk 0:00:02.8]} 65. Qd8+ {[%clk 0:00:04]} 65...
Kg7 {[%clk 0:00:02.8]} 66. Qg5+ {[%clk 0:00:04.5]} 66... Kh7 {[%clk 0:00:03.3]}
67. Qh5+ {[%clk 0:00:04.7]} 67... Kg8 {[%clk 0:00:03.9]} 68. Qg5+ {[%clk
0:00:05.1]} 1/2-1/2

[Event "*** SCC Grand Prix: Titled Tuesday Blitz"]
[Site "Chess.com"]
[Date "2020.10.06"]
[Round "6"]
[White "canary2016"]
[Black "kinga2008"]
[Result "0-1"]
[WhiteElo "1902"]
[BlackElo "2137"]
[TimeControl "180+1"]
[EndTime "11:09:48 PDT"]
[Termination "kinga2008 won by checkmate"]

1. d4 {[%clk 0:03:00.9]} 1... c5 {[%clk 0:03:00.9]} 2. d5 {[%clk 0:03:00.1]}
2... e6 {[%clk 0:03:00.9]} 3. dxe6 {[%clk 0:02:58.3]} 3... fxe6 {[%clk
0:02:59.6]} 4. Nf3 {[%clk 0:02:57.1]} 4... Nf6 {[%clk 0:02:58.7]} 5. e3 {[%clk
0:02:56.3]} 5... Be7 {[%clk 0:02:58.6]} 6. Bd3 {[%clk 0:02:55.9]} 6... O-O
{[%clk 0:02:50]} 7. O-O {[%clk 0:02:55.9]} 7... d5 {[%clk 0:02:48.6]} 8. c4
{[%clk 0:02:55.9]} 8... Nc6 {[%clk 0:02:46.2]} 9. Nc3 {[%clk 0:02:53.4]} 9... a6
{[%clk 0:02:35.9]} 10. a4 {[%clk 0:02:50.1]} 10... Bd7 {[%clk 0:02:29.1]} 11.
Qe2 {[%clk 0:02:42.6]} 11... Rc8 {[%clk 0:02:17.3]} 12. Rd1 {[%clk 0:02:39.4]}
12... d4 {[%clk 0:02:11.4]} 13. exd4 {[%clk 0:02:38.5]} 13... cxd4 {[%clk
0:02:08.8]} 14. Ne4 {[%clk 0:02:37.8]} 14... e5 {[%clk 0:02:08]} 15. Nxf6+
{[%clk 0:02:33.6]} 15... Bxf6 {[%clk 0:02:06.5]} 16. Qe4 {[%clk 0:02:33.3]}
16... g6 {[%clk 0:02:03.5]} 17. Bh6 {[%clk 0:02:29.7]} 17... Bf5 {[%clk
0:02:01.5]} 18. Qd5+ {[%clk 0:02:22]} 18... Qxd5 {[%clk 0:01:57.3]} 19. cxd5
{[%clk 0:02:21.9]} 19... Bxd3 {[%clk 0:01:55.4]} 20. Bxf8 {[%clk 0:02:16.6]}
20... Be2 {[%clk 0:01:52.2]} 21. Rd2 {[%clk 0:02:11.4]} 21... Bxf3 {[%clk
0:01:51]} 22. dxc6 {[%clk 0:02:09.6]} 22... Rxf8 {[%clk 0:01:48.9]} 23. gxf3
{[%clk 0:02:08.1]} 23... bxc6 {[%clk 0:01:39.8]} 24. Rc2 {[%clk 0:02:05.9]}
24... Bg5 {[%clk 0:01:34.9]} 25. Kg2 {[%clk 0:01:59.4]} 25... d3 {[%clk
0:01:30.5]} 26. Rxc6 {[%clk 0:01:57.4]} 26... Rb8 {[%clk 0:01:22.8]} 27. Rd1
{[%clk 0:01:40.3]} 27... d2 {[%clk 0:01:19.6]} 28. Rxa6 {[%clk 0:01:27.9]} 28...
Rxb2 {[%clk 0:01:18.1]} 29. Rc6 {[%clk 0:01:10.4]} 29... Ra2 {[%clk 0:01:09.8]}
30. Rc4 {[%clk 0:01:09.7]} 30... Kf7 {[%clk 0:01:08]} 31. Kf1 {[%clk 0:01:08.6]}
31... Ke6 {[%clk 0:01:07.3]} 32. Ke2 {[%clk 0:01:07.8]} 32... Kd5 {[%clk
0:01:06.9]} 33. Re4 {[%clk 0:01:05.6]} 33... h5 {[%clk 0:00:58.3]} 34. Rb4
{[%clk 0:01:02.6]} 34... Rc2 {[%clk 0:00:46.1]} 35. Rb6 {[%clk 0:00:58.4]} 35...
Rc4 {[%clk 0:00:35]} 36. Rxg6 {[%clk 0:00:54.8]} 36... Bf4 {[%clk 0:00:32.7]}
37. a5 {[%clk 0:00:44.8]} 37... e4 {[%clk 0:00:31.6]} 38. a6 {[%clk 0:00:26.4]}
38... exf3+ {[%clk 0:00:29.8]} 39. Kxf3 {[%clk 0:00:25.4]} 39... Ke5 {[%clk
0:00:28.5]} 40. a7 {[%clk 0:00:22.3]} 40... Ra4 {[%clk 0:00:27.6]} 41. Rg7
{[%clk 0:00:20.5]} 41... Ra3+ {[%clk 0:00:25]} 42. Ke2 {[%clk 0:00:19.8]} 42...
Ke4 {[%clk 0:00:25.4]} 43. Re7+ {[%clk 0:00:18.7]} 43... Kf5 {[%clk 0:00:24.5]}
44. Rb7 {[%clk 0:00:16.3]} 44... Kg4 {[%clk 0:00:21.6]} 45. Rh7 {[%clk
0:00:12.1]} 45... Ra6 {[%clk 0:00:14.1]} 46. h3+ {[%clk 0:00:10.7]} 46... Kg5
{[%clk 0:00:13.1]} 47. Rg1+ {[%clk 0:00:06.6]} 47... Kh4 {[%clk 0:00:13]} 48.
Rhg7 {[%clk 0:00:04.1]} 48... Re6+ {[%clk 0:00:07.6]} 49. Kd1 {[%clk 0:00:03.7]}
49... Ra6 {[%clk 0:00:06.3]} 50. Kc2 {[%clk 0:00:02.4]} 50... Ra2+ {[%clk
0:00:05.1]} 51. Kb1 {[%clk 0:00:02]} 51... Ra6 {[%clk 0:00:04.4]} 52. Kc2 {[%clk
0:00:02]} 52... Rc6+ {[%clk 0:00:03.6]} 53. Kd1 {[%clk 0:00:02.4]} 53... Rc1+
{[%clk 0:00:03.8]} 54. Ke2 {[%clk 0:00:02.6]} 54... Rc5 {[%clk 0:00:01.2]} 55.
Rd1 {[%clk 0:00:02.5]} 55... Re5+ {[%clk 0:00:01.6]} 56. Kf1 {[%clk 0:00:02.8]}
56... Ra5 {[%clk 0:00:01.7]} 57. Rh7 {[%clk 0:00:02.4]} 57... Bg5 {[%clk
0:00:01.8]} 58. Rh8 {[%clk 0:00:02.3]} 58... Rxa7 {[%clk 0:00:01.4]} 59. Rh6
{[%clk 0:00:02.1]} 59... Bxh6 {[%clk 0:00:00.9]} 60. Ke2 {[%clk 0:00:02.1]}
60... Rf7 {[%clk 0:00:01.6]} 61. Kf1 {[%clk 0:00:02.4]} 61... Re7 {[%clk
0:00:02.5]} 62. Kg1 {[%clk 0:00:02.7]} 62... Re1+ {[%clk 0:00:02.4]} 63. Rxe1
{[%clk 0:00:03]} 63... dxe1=Q+ {[%clk 0:00:03.3]} 64. Kg2 {[%clk 0:00:03.8]}
64... Qe4+ {[%clk 0:00:03.5]} 65. Kg1 {[%clk 0:00:03.8]} 65... Qf4 {[%clk
0:00:04.2]} 66. Kf1 {[%clk 0:00:03.8]} 66... Qf3 {[%clk 0:00:03.6]} 67. Ke1
{[%clk 0:00:04]} 67... Kxh3 {[%clk 0:00:03.9]} 68. Kf1 {[%clk 0:00:04.1]} 68...
Be3 {[%clk 0:00:02.5]} 69. Kg1 {[%clk 0:00:04.1]} 69... Qxf2+ {[%clk 0:00:02.7]}
70. Kh1 {[%clk 0:00:04.2]} 70... Qg1# {[%clk 0:00:03.6]} 0-1

[Event "*** SCC Grand Prix: Titled Tuesday Blitz"]
[Site "Chess.com"]
[Date "2020.10.06"]
[Round "6"]
[White "Savagelittlemole"]
[Black "platy3"]
[Result "0-1"]
[WhiteElo "2595"]
[BlackElo "2813"]
[TimeControl "180+1"]
[EndTime "11:09:49 PDT"]
[Termination "platy3 won by checkmate"]

1. e4 {[%clk 0:03:00.9]} 1... c5 {[%clk 0:02:59.7]} 2. Ne2 {[%clk 0:02:59]} 2...
Nc6 {[%clk 0:02:58.3]} 3. d4 {[%clk 0:02:59.2]} 3... cxd4 {[%clk 0:02:56.9]} 4.
Nxd4 {[%clk 0:03:00.1]} 4... Nf6 {[%clk 0:02:57.7]} 5. Nc3 {[%clk 0:03:00.1]}
5... d6 {[%clk 0:02:52.7]} 6. Bg5 {[%clk 0:02:58.8]} 6... e6 {[%clk 0:02:47.2]}
7. Qd2 {[%clk 0:02:58.7]} 7... a6 {[%clk 0:02:46.4]} 8. O-O-O {[%clk 0:02:58.9]}
8... Be7 {[%clk 0:02:46.6]} 9. Kb1 {[%clk 0:02:59.3]} 9... Nxd4 {[%clk
0:02:40.9]} 10. Qxd4 {[%clk 0:02:58]} 10... b5 {[%clk 0:02:41.8]} 11. f4 {[%clk
0:02:45.5]} 11... Bb7 {[%clk 0:02:35.1]} 12. Bd3 {[%clk 0:02:36.1]} 12... Qc7
{[%clk 0:02:32]} 13. e5 {[%clk 0:02:22.2]} 13... dxe5 {[%clk 0:02:17.3]} 14.
fxe5 {[%clk 0:02:23.1]} 14... Rd8 {[%clk 0:01:57.9]} 15. Qf4 {[%clk 0:02:19.1]}
15... Nd5 {[%clk 0:01:24.8]} 16. Nxd5 {[%clk 0:02:17]} 16... Bxd5 {[%clk
0:01:24.8]} 17. Rhf1 {[%clk 0:02:08.1]} 17... Bxg5 {[%clk 0:01:24.9]} 18. Qxg5
{[%clk 0:02:06]} 18... O-O {[%clk 0:01:25.5]} 19. Rf4 {[%clk 0:01:46.4]} 19...
Bc4 {[%clk 0:01:13.3]} 20. Rf3 {[%clk 0:01:24.2]} 20... h6 {[%clk 0:01:03.9]}
21. Qf4 {[%clk 0:01:17.6]} 21... Rd5 {[%clk 0:00:59.2]} 22. Re3 {[%clk
0:01:02.4]} 22... Rfd8 {[%clk 0:00:56.6]} 23. Rc1 {[%clk 0:01:02.3]} 23... Bxd3
{[%clk 0:00:47.7]} 24. cxd3 {[%clk 0:01:03.2]} 24... Qd7 {[%clk 0:00:47.3]} 25.
Rd1 {[%clk 0:00:50.8]} 25... Rc8 {[%clk 0:00:46.8]} 26. Rg3 {[%clk 0:00:47.8]}
26... Qc7 {[%clk 0:00:39.7]} 27. Qd2 {[%clk 0:00:37.8]} 27... Qxe5 {[%clk
0:00:39.7]} 28. a3 {[%clk 0:00:35.8]} 28... Rdc5 {[%clk 0:00:31.4]} 29. d4
{[%clk 0:00:24]} 29... Qf5+ {[%clk 0:00:24.3]} 30. Ka1 {[%clk 0:00:21.3]} 30...
Rc2 {[%clk 0:00:13.5]} 31. Qxh6 {[%clk 0:00:20.5]} 31... Qh7 {[%clk 0:00:12.9]}
32. Qe3 {[%clk 0:00:14.7]} 32... Qf5 {[%clk 0:00:09.1]} 33. Rf3 {[%clk
0:00:13.6]} 33... Qg6 {[%clk 0:00:07.6]} 34. Rg3 {[%clk 0:00:13.6]} 34... Qf5
{[%clk 0:00:07.7]} 35. Rf3 {[%clk 0:00:14]} 35... Qd5 {[%clk 0:00:05.4]} 36. Rh3
{[%clk 0:00:13.1]} 36... Qxg2 {[%clk 0:00:02.9]} 37. Qd3 {[%clk 0:00:11.8]}
37... g6 {[%clk 0:00:02.5]} 38. Rg3 {[%clk 0:00:12]} 38... Qe2 {[%clk
0:00:02.8]} 39. Rxg6+ {[%clk 0:00:11.7]} 39... Kf8 {[%clk 0:00:03.4]} 40. Rgg1
{[%clk 0:00:07.9]} 40... Qxd3 {[%clk 0:00:03.1]} 41. Rxd3 {[%clk 0:00:07.8]}
41... Rxh2 {[%clk 0:00:04]} 42. Rf3 {[%clk 0:00:07.4]} 42... Rcc2 {[%clk
0:00:04.1]} 43. Rgf1 {[%clk 0:00:07.6]} 43... Rc7 {[%clk 0:00:04.4]} 44. Rf6
{[%clk 0:00:06.9]} 44... Ke8 {[%clk 0:00:04.6]} 45. Re1 {[%clk 0:00:06.1]} 45...
Rd2 {[%clk 0:00:04.5]} 46. Rf4 {[%clk 0:00:05.8]} 46... Rcc2 {[%clk 0:00:04.2]}
47. Re5 {[%clk 0:00:04.7]} 47... Rxb2 {[%clk 0:00:03.5]} 48. d5 {[%clk
0:00:05.2]} 48... Ra2+ {[%clk 0:00:03.1]} 49. Kb1 {[%clk 0:00:05.6]} 49... Rdb2+
{[%clk 0:00:03.6]} 50. Kc1 {[%clk 0:00:05.8]} 50... Re2 {[%clk 0:00:04.2]} 51.
Rxe2 {[%clk 0:00:05.5]} 51... Rxe2 {[%clk 0:00:04.8]} 52. dxe6 {[%clk
0:00:06.4]} 52... Rxe6 {[%clk 0:00:05.4]} 53. Rd4 {[%clk 0:00:06.4]} 53... Ke7
{[%clk 0:00:05.4]} 54. a4 {[%clk 0:00:06.8]} 54... Rc6+ {[%clk 0:00:05.5]} 55.
Kd2 {[%clk 0:00:06.8]} 55... Rc4 {[%clk 0:00:05.6]} 56. Rxc4 {[%clk 0:00:05.5]}
56... bxc4 {[%clk 0:00:06.5]} 57. Kc3 {[%clk 0:00:06]} 57... Kd6 {[%clk
0:00:06.5]} 58. Kxc4 {[%clk 0:00:06.9]} 58... Kc6 {[%clk 0:00:05.9]} 59. Kd4
{[%clk 0:00:06.4]} 59... a5 {[%clk 0:00:06.3]} 60. Kc4 {[%clk 0:00:05.1]} 60...
f6 {[%clk 0:00:05.2]} 61. Kd4 {[%clk 0:00:05.6]} 61... Kd6 {[%clk 0:00:05.6]}
62. Kc4 {[%clk 0:00:05.4]} 62... f5 {[%clk 0:00:04.5]} 63. Kb5 {[%clk
0:00:05.3]} 63... f4 {[%clk 0:00:04.2]} 64. Kxa5 {[%clk 0:00:06.2]} 64... f3
{[%clk 0:00:04.8]} 65. Kb6 {[%clk 0:00:06.7]} 65... f2 {[%clk 0:00:05.4]} 66. a5
{[%clk 0:00:07.6]} 66... f1=Q {[%clk 0:00:04.8]} 67. a6 {[%clk 0:00:08.5]} 67...
Qf3 {[%clk 0:00:04.7]} 68. Ka7 {[%clk 0:00:07.2]} 68... Qc6 {[%clk 0:00:04.1]}
69. Kb8 {[%clk 0:00:07.2]} 69... Qb5+ {[%clk 0:00:04.7]} 70. Ka7 {[%clk
0:00:07.1]} 70... Kc7 {[%clk 0:00:05]} 71. Ka8 {[%clk 0:00:07.3]} 71... Qb8#
{[%clk 0:00:05.9]} 0-1

[Event "*** SCC Grand Prix: Titled Tuesday Blitz"]
[Site "Chess.com"]
[Date "2020.10.06"]
[Round "6"]
[White "Falcon28dz"]
[Black "amatatanav"]
[Result "1-0"]
[WhiteElo "2248"]
[BlackElo "2384"]
[TimeControl "180+1"]
[EndTime "11:09:57 PDT"]
[Termination "Falcon28dz won by resignation"]

1. e4 {[%clk 0:03:00.9]} 1... c5 {[%clk 0:02:55.9]} 2. Nf3 {[%clk 0:03:00]} 2...
Nc6 {[%clk 0:02:55.1]} 3. Bb5 {[%clk 0:02:59.4]} 3... e6 {[%clk 0:02:54.5]} 4.
O-O {[%clk 0:02:46.5]} 4... Nge7 {[%clk 0:02:54.2]} 5. c3 {[%clk 0:02:43.2]}
5... a6 {[%clk 0:02:54]} 6. Ba4 {[%clk 0:02:43.5]} 6... b5 {[%clk 0:02:53.5]} 7.
Bc2 {[%clk 0:02:43.9]} 7... Bb7 {[%clk 0:02:54.4]} 8. Re1 {[%clk 0:02:42.4]}
8... d5 {[%clk 0:02:50.9]} 9. e5 {[%clk 0:02:06.1]} 9... d4 {[%clk 0:02:48.2]}
10. Be4 {[%clk 0:02:04.9]} 10... Qc7 {[%clk 0:02:23.4]} 11. d3 {[%clk 0:02:00]}
11... Ng6 {[%clk 0:02:11.8]} 12. a4 {[%clk 0:01:58.9]} 12... dxc3 {[%clk
0:01:45.8]} 13. bxc3 {[%clk 0:01:41.7]} 13... Rd8 {[%clk 0:01:21.9]} 14. axb5
{[%clk 0:01:36.2]} 14... axb5 {[%clk 0:01:22.8]} 15. Na3 {[%clk 0:01:34.2]}
15... Na7 {[%clk 0:00:38.9]} 16. Bxb7 {[%clk 0:00:49]} 16... Qxb7 {[%clk
0:00:39.8]} 17. Rb1 {[%clk 0:00:49.6]} 17... Be7 {[%clk 0:00:17.1]} 18. Nxb5
{[%clk 0:00:43.7]} 18... Nxb5 {[%clk 0:00:18]} 19. Qa4 {[%clk 0:00:32.3]} 19...
O-O {[%clk 0:00:17.6]} 20. Rxb5 {[%clk 0:00:32.1]} 20... Qc6 {[%clk 0:00:17.2]}
21. Qc4 {[%clk 0:00:26]} 21... Rd5 {[%clk 0:00:13.2]} 22. d4 {[%clk 0:00:22.5]}
22... Rfd8 {[%clk 0:00:09.9]} 23. Be3 {[%clk 0:00:21.1]} 23... Bf8 {[%clk
0:00:06.2]} 24. Reb1 {[%clk 0:00:21]} 24... Qc8 {[%clk 0:00:05.6]} 25. h3 {[%clk
0:00:18.6]} 25... cxd4 {[%clk 0:00:05.3]} 26. Qxc8 {[%clk 0:00:18.9]} 26... Rxc8
{[%clk 0:00:05.3]} 27. Rxd5 {[%clk 0:00:18.8]} 27... exd5 {[%clk 0:00:03.6]} 28.
cxd4 {[%clk 0:00:18.8]} 28... Be7 {[%clk 0:00:02.8]} 29. Rb5 {[%clk 0:00:18.5]}
29... Rd8 {[%clk 0:00:02.7]} 30. g3 {[%clk 0:00:17.8]} 30... Nf8 {[%clk
0:00:03.2]} 31. h4 {[%clk 0:00:17.4]} 31... Ne6 {[%clk 0:00:03.7]} 32. Kg2
{[%clk 0:00:17.5]} 32... Kf8 {[%clk 0:00:04.2]} 33. h5 {[%clk 0:00:17.8]} 33...
h6 {[%clk 0:00:04.3]} 34. Ne1 {[%clk 0:00:15.4]} 34... Ke8 {[%clk 0:00:04.5]}
35. Nd3 {[%clk 0:00:15.9]} 35... Nc7 {[%clk 0:00:04.5]} 36. Rb7 {[%clk
0:00:15.5]} 36... Kd7 {[%clk 0:00:04.1]} 37. Nb4 {[%clk 0:00:15.1]} 37... Bxb4
{[%clk 0:00:03.6]} 38. Rxb4 {[%clk 0:00:16]} 38... Ne6 {[%clk 0:00:03.7]} 39.
Rb7+ {[%clk 0:00:15.4]} 39... Nc7 {[%clk 0:00:04.1]} 40. f4 {[%clk 0:00:14.8]}
40... Kc6 {[%clk 0:00:04.4]} 41. Ra7 {[%clk 0:00:15.5]} 41... Rb8 {[%clk
0:00:04.2]} 42. Kf3 {[%clk 0:00:15.3]} 42... Rb3 {[%clk 0:00:02.1]} 43. g4
{[%clk 0:00:15.4]} 43... Nb5 {[%clk 0:00:02.4]} 44. Rxf7 {[%clk 0:00:14]} 44...
Nxd4+ {[%clk 0:00:02.3]} 45. Kf2 {[%clk 0:00:14.8]} 45... Nc2 {[%clk 0:00:02.7]}
46. Bd2 {[%clk 0:00:14.8]} 46... Rd3 {[%clk 0:00:02.3]} 47. e6 {[%clk
0:00:14.5]} 47... Rxd2+ {[%clk 0:00:02.4]} 48. Kf3 {[%clk 0:00:13.8]} 48... Rd3+
{[%clk 0:00:02.7]} 49. Ke2 {[%clk 0:00:14.1]} 49... Re3+ {[%clk 0:00:03.6]} 50.
Kd2 {[%clk 0:00:14.7]} 50... d4 {[%clk 0:00:03.6]} 51. Kxc2 {[%clk 0:00:14.6]}
51... Rxe6 {[%clk 0:00:03.8]} 52. Rxg7 {[%clk 0:00:12.9]} 52... Kd5 {[%clk
0:00:04.3]} 53. Rg6 {[%clk 0:00:12.6]} 53... Re2+ {[%clk 0:00:04.8]} 54. Kd3
{[%clk 0:00:12.4]} 54... Re3+ {[%clk 0:00:05.2]} 55. Kd2 {[%clk 0:00:12.7]}
55... Ke4 {[%clk 0:00:05.8]} 56. Rd6 {[%clk 0:00:10.5]} 56... Rg3 {[%clk
0:00:05.4]} 57. Rg6 {[%clk 0:00:08.9]} 57... Rg2+ {[%clk 0:00:05.5]} 58. Kd1
{[%clk 0:00:08.3]} 58... Ke3 {[%clk 0:00:05.8]} 59. Re6+ {[%clk 0:00:06.6]}
59... Kd3 {[%clk 0:00:06]} 60. g5 {[%clk 0:00:04.7]} 60... hxg5 {[%clk 0:00:05]}
61. fxg5 {[%clk 0:00:04.8]} 61... Rg1+ {[%clk 0:00:05.2]} 62. Re1 {[%clk
0:00:04.5]} 62... Rxg5 {[%clk 0:00:05.7]} 63. Rh1 {[%clk 0:00:04.5]} 63... Ra5
{[%clk 0:00:05.2]} 64. Rh3+ {[%clk 0:00:02.2]} 64... Kc4 {[%clk 0:00:05.5]} 65.
h6 {[%clk 0:00:03.1]} 65... d3 {[%clk 0:00:04.6]} 66. h7 {[%clk 0:00:03.3]}
66... Kc3 {[%clk 0:00:05]} 67. h8=Q+ {[%clk 0:00:01.8]} 67... Kb3 {[%clk
0:00:05]} 68. Rxd3+ {[%clk 0:00:01.1]} 68... Kc4 {[%clk 0:00:05.3]} 69. Qc3+
{[%clk 0:00:02]} 69... Kb5 {[%clk 0:00:05.6]} 70. Rd4 {[%clk 0:00:02.5]} 70...
Ra2 {[%clk 0:00:05.3]} 71. Qb3+ {[%clk 0:00:02.7]} 71... Kc5 {[%clk 0:00:05.5]}
72. Qxa2 {[%clk 0:00:03.6]} 72... Kxd4 {[%clk 0:00:06.4]} 73. Qd2+ {[%clk
0:00:04.4]} 73... Kc4 {[%clk 0:00:06.4]} 74. Ke2 {[%clk 0:00:05.3]} 74... Kc5
{[%clk 0:00:06.4]} 75. Kf3 {[%clk 0:00:06.2]} 75... Kc6 {[%clk 0:00:06.7]} 76.
Ke4 {[%clk 0:00:07.1]} 1-0